Cogmind - Beta 16.1 @@@ ROGUE MODE // 2026.05.03 @ 05:23:36 Player: KURIIRI Result: Self-destructed Performance ------------- Evolutions (0) 0 Regions Visited (3) 600 Robots Destroyed (50) 250 Value Destroyed (1373) 1373 Prototype IDs (13) 260 Alien Tech Used (0) 0 Bonus (-75) -75 TOTAL SCORE: 2408 Bonus ------- Friendly Fire -75 Cogmind --------- Core Integrity 29/250 Matter 300/300 Energy 265/265 System Corruption 0% Temperature Cool (0) Movement Rolling (120) Ox1 Location -8/Recycling Parts ------- > --- POWER (1) -------- Improved Ion Engine > --- PROPULSION (2) --- Subdweller Monowheel > --- UTILITY (2) ------ Makeshift Light Armor Plating > --- WEAPON (2) ------- Subdweller Beam Cannon Subdweller Machine Gun > --- INVENTORY (5) ---- Improved Terrain Scanner Hacking Suite Hacking Suite Subdweller Laser Subdweller Beam Cannon Peak State ------------ > --- POWER ------------ Improved Ion Engine > --- PROPULSION ------- Spiked Treads Spiked Treads > --- UTILITY ---------- Makeshift Light Armor Plating Makeshift Thermal Plating > --- WEAPON ----------- Subdweller Beam Cannon Subdweller Machine Gun > --- INVENTORY -------- Wheel Improved Terrain Scanner Hacking Suite Hacking Suite Subdweller Laser [Rating: 19] Favorites ----------- Power Improved Ion Engine Engine Improved Ion Engine Propulsion Light Treads Treads Light Treads Leg Aluminum Leg Wheel Wheel Utility Large Storage Unit Device Improved Terrain Scanner Storage Large Storage Unit Protection Light Armor Plating Weapon Light EM Pulse Cannon Energy Gun Subdweller Laser Energy Cannon Light EM Pulse Cannon Ballistic Gun Subdweller Machine Gun Launcher Grenade Launcher Build | -11 -10 -10 -8 ------- Run | Yrd Mat Sub Rec Slots Evolved . | . . . . Power . | . . . . Propulsion . | . . . . Utility . | . . . . Weapon . | . . . . Parts Attached 25 | 3 6 16 . Power 3 | . 1 2 . Engine 3 | . 1 2 . Core . | . . . . Reactor . | . . . . Propulsion 7 | 2 . 5 . Treads 5 | 2 . 3 . Leg . | . . . . Wheel 2 | . . 2 . Hover . | . . . . Flight . | . . . . Utility 6 | 1 2 3 . Device 1 | 1 . . . Storage 1 | . 1 . . Processor . | . . . . Hackware . | . . . . Protection 4 | . 1 3 . Artifact . | . . . . Weapon 9 | . 3 6 . Energy Gun 2 | . . 2 . Energy Cannon 4 | . 2 2 . Ballistic Gun 2 | . . 2 . Ballistic Cannon . | . . . . Launcher 1 | . 1 . . Special Weapon . | . . . . Impact Weapon . | . . . . Slashing Weapon . | . . . . Piercing Weapon . | . . . . Special Melee Weapon . | . . . . Unidentified Prototypes . | . . . . Parts Lost 6 | . 1 5 . Power . | . . . . Propulsion 3 | . . 3 . Utility 2 | . . 2 . Weapon 1 | . 1 . . Highest Loss Streak 2 | . 1 2 . To Critical Strikes 1 | . . 1 . Average Backups 9 | 6 13 6 5 Power 1 | 1 2 . . Propulsion 1 | 3 2 1 . Utility 4 | . 5 3 3 Weapon 1 | 1 2 1 2 Tool/Special . | . . . . Unused Backups 24 | . 14 5 5 Power 2 | . 1 1 . Propulsion 1 | . 1 . . Utility 12 | . 5 4 3 Weapon 9 | . 7 . 2 Tool/Special . | . . . . Average Slot Usage (%) 91 | . 95 89 71 Engine 14 | . 14 14 14 Treads 23 | . 28 22 . Wheel 2 | . . 4 14 Device 1 | . 3 . . Storage 6 | . 14 2 . Protection 14 | . 10 16 14 Energy Gun 3 | . . 4 . Energy Cannon 14 | . 21 11 14 Ballistic Gun 7 | . . 11 14 Peak Build Rating 19 | 9 13 19 13 Average Rating 13 | 7 11 14 13 On Entrance 9 | 6 9 11 13 Avg Prop Armor Cover (%) 11 | . . 11 . Naked Turns . | . . . . Heaviest Build 38 | 15 38 38 23 Greatest Support 40 | 40 40 40 20 Greatest Overweight (x) 7 | . . 7 1 Average Overweight (x) . | . . . 1 Largest Inventory Capacity 15 | 8 15 15 5 Average Capacity 9 | 8 14 7 5 Most Carried 15 | 7 15 15 5 Average Carried 9 | 5 13 6 5 Final Capacity 15 | 8 15 5 5 Final Carried 14 | 5 14 5 5 Class Distribution -------------------- 68% | Mutant 15% | Subdweller-Mutant 15% | Derelict-Mutant Dominant Class ---------------- Mutant | -10/Materials Mutant | -10/Subcaves Mutant | -8/Recycling Resources | -11 -10 -10 -8 ----------- Run | Yrd Mat Sub Rec Matter Collected 1061 | 309 415 337 . Remotely . | . . . . Salvage Created 1937 | 112 959 866 . Parts 115 | 12 47 56 . Haulers Intercepted 2 | . 2 . . Recyclers Shooed 1 | 1 . . . Parts Field Recycled . | . . . . Retrieved Matter . | . . . . Parts Self-Destructed 16 | . . 16 . Prevented . | . . . . Parts Restored . | . . . . Kills | -11 -10 -10 -8 ------- Run | Yrd Mat Sub Rec Combat Hostiles Destroyed 34 | . 13 21 . Guns 4 | . . 4 . Cannons 21 | . 7 14 . AOE 4 | . 4 . . Classes Destroyed 11 | 2 5 4 . Worker 1 | . 1 . . Tunneler 4 | 4 . . . Hauler 2 | . 2 . . Recycler 4 | 1 3 . . Operator 2 | . 2 . . Watcher 3 | . 3 . . Swarmer 4 | . . 4 . Grunt 13 | . 13 . . Sentry 1 | . . 1 . Artisan 3 | . . 3 . Subdweller 16 | . . 16 . Best Kill Streak 6 | 3 6 6 . Combat Bots Only 6 | . 5 6 . Max Kills in Single Turn 3 | 1 3 1 . Gunslinging . | . . . . Exploded 2 | . 2 . . Melee . | . . . . Uniques/NPCs Destroyed . | . . . . Combat | -11 -10 -10 -8 -------- Run | Yrd Mat Sub Rec Hostile Shots Fired 121 | . 35 86 . Missed 34 | . 9 25 . Hits 87 | . 26 61 . Projectile 87 | . 26 61 . AOE 1 | . . 1 . Critical Strikes 6 | . 1 5 . Damage Taken 1594 | . 322 1272 . Core 221 | . 44 177 . Absorbed by Shields . | . . . . Ignored by Resistances 23 | . . 23 . Regen/Repaired (Parts) 61 | . 61 . . Core Remaining (%) 100 | 100 . . . Volleys Fired 164 | 14 45 105 . Largest 2 | 2 2 2 . Hottest 120 | 40 112 120 . Shots Fired 225 | 28 67 130 . Gun 92 | 28 . 64 . Cannon 128 | . 62 66 . Launcher 5 | . 5 . . Special . | . . . . Kinetic 57 | 28 . 29 . Thermal 96 | . . 96 . Explosive 5 | . 5 . . Electromagnetic 67 | . 62 5 . Robot Hit Streak 18 | 5 14 18 . Robot Miss Streak 4 | 2 2 4 . Penetration Max . | . . . . Secondary Targets . | . . . . Shots Hit Robots 129 | 18 44 67 . Core Hits 54 | 5 25 24 . Critical Kills 3 | . . 3 . Critical Parts Destroyed 1 | 1 . . . Critical Strikes 5 | 1 1 3 . Meltdown 3 | . . 3 . Destroy 1 | 1 . . . Corrupt 1 | . 1 . . Melee Attacks . | . . . . Impact . | . . . . Slashing . | . . . . Piercing . | . . . . Sneak Attacks . | . . . . Combat Hostiles . | . . . . Follow-up Attacks . | . . . . Damage Inflicted 3367 | 223 1424 1720 . Guns 607 | 218 . 389 . Cannons 2400 | . 1069 1331 . Explosions 346 | . 346 . . Melee . | . . . . Ramming 14 | 5 9 . . Kinetic 278 | 218 . 60 . Thermal 1638 | . 33 1605 . Explosive 313 | . 313 . . Electromagnetic 1124 | . 1069 55 . Impact . | . . . . Slashing . | . . . . Piercing . | . . . . Highest Corruption . | . . . . Average Corruption . | . . . . Corruption Purged . | . . . . Corruption Blocked . | . . . . Overload Shots . | . . . . Overflow Damage 40 | . 40 . . Projectiles 37 | . 37 . . Explosions 3 | . 3 . . Melee . | . . . . Knockbacks 1 | . 1 . . Impact 1 | . 1 . . Kinetic . | . . . . Secondary . | . . . . Self-Inflicted Damage 3 | . 3 . . Shots 1 | . 1 . . Rammed 2 | 1 1 . . Targets Rammed 2 | 1 1 . . Kicked . | . . . . Crushed . | . . . . Highest Temperature 558 | . 303 558 . Average Temperature 101 | . 93 109 . Received Heat Transfer 1131 | . 198 933 . Effects 11 | . 2 9 . Shutdowns 3 | . . 3 . Interference 3 | . 2 1 . Matter Decay 2 | . . 2 . Damage (minor) 2 | . . 2 . Damage (core) 1 | . . 1 . Siege Activations . | . . . . Martial Activations . | . . . . Shielding Activations . | . . . . Robots Disrupted . | . . . . Combat Hostiles . | . . . . Robots Corrupted 3 | . 3 . . Combat Hostiles 2 | . 2 . . Parts Fried 5 | . 5 . . Impact Corruptions . | . . . . Robots Melted 3 | . . 3 . Combat Hostiles 3 | . . 3 . Parts Melted 6 | . . 6 . Heat Transferred 2152 | . 50 2102 . Parts Sabotaged . | . . . . Parts Stolen . | . . . . Parts Stripped . | . . . . Power Chain Reactions 1 | . 1 . . Alert | -11 -10 -10 -8 ------- Run | Yrd Mat Sub Rec Maximum Alert Level 1 | . 1 . . Low Security (%) 86 | 100 85 . 100 Level 1 13 | . 14 . . Level 2 . | . . . . Level 3 . | . . . . Level 4 . | . . . . Level 5 . | . . . . High Security . | . . . . Max Security . | . . . . Peak Influence 244 | 10 244 . 3 Initial 3 | . . . 3 Average 77 | 2 83 . 3 Influence Increases 685 | 25 530 130 . Destroy 0b10 Robot/C 360 | . 260 100 . Destroy 0b10 Robot/NC 80 | 25 55 . . Destroy Leader 70 | . 70 . . Successful Hack 14 | . 14 . . Select Force Hacks 60 | . 60 . . Disable Machine 45 | . 45 . . Destroy Structure 26 | . 26 . . Lose Combat Pursuer 30 | . . 30 . Influence Decreases 682 | 25 310 343 4 Entered New Map 110 | . . 106 4 Time Decay 532 | 25 300 207 . Lost Part 40 | . 10 30 . Squads Dispatched 3 | . 3 . . Investigation 2 | . 2 . . Extermination . | . . . . Reinforcement 1 | . 1 . . Assault . | . . . . Garrison . | . . . . Intercept . | . . . . Searches Triggered . | . . . . Construction Impeded . | . . . . Haulers Reinforced . | . . . . Active Scanning Responses . | . . . . Cargo Convoy Interrupts . | . . . . Stealth | -11 -10 -10 -8 --------- Run | Yrd Mat Sub Rec Distress Signals . | . . . . Communications Jammed . | . . . . Distress Signals . | . . . . Times Spotted 41 | . 17 24 . Peak Tracking Total 6 | . 3 6 . Tactical Retreats 1 | . . 1 . Traps | -11 -10 -10 -8 ------- Run | Yrd Mat Sub Rec Traps Triggered 3 | . . 3 . Indirectly . | . . . . Trap Hack Attempts . | . . . . Triggered . | . . . . Disarmed . | . . . . Reprogrammed . | . . . . Reused . | . . . . Traps Extracted . | . . . . Installed . | . . . . Triggered . | . . . . Machines | -11 -10 -10 -8 ---------- Run | Yrd Mat Sub Rec Machines Disabled 3 | . 3 . . Max in Single Turn 2 | . 2 . . Machines Repaired . | . . . . Machines Dismantled . | . . . . Machines Sabotaged . | . . . . Overloaded Fab Kills . | . . . . Hacking | -11 -10 -10 -8 --------- Run | Yrd Mat Sub Rec Machines Accessed 12 | . 10 2 . Terminals 7 | . 7 . . Fabricators . | . . . . Repair Stations 1 | . 1 . . Recycling Units 2 | . 2 . . Scanalyzers . | . . . . Garrison Access . | . . . . Total Hacks 28 | . 23 5 . Successful 16 | . 11 5 . Failed 12 | . 12 . . Catastrophic 4 | . 4 . . Database Lockouts . | . . . . Manual 20 | . 20 . . Terminals 17 | . 17 . . Fabricators . | . . . . Repair Stations 2 | . 2 . . Recycling Units 4 | . 4 . . Scanalyzers . | . . . . Garrison Access . | . . . . Terminal Hacks 10 | . 5 5 . Record 4 | . . 4 . Robot Analysis 4 | . 4 . . Locate Traps 1 | . 1 . . Proto ID Catalog 1 | . . 1 . Fabricator Hacks . | . . . . Repair Station Hacks 2 | . 2 . . Scan Component 1 | . 1 . . Repair 1 | . 1 . . Recycling Unit Hacks 1 | . 1 . . Retrieve Components 1 | . 1 . . Scanalyzer . | . . . . Garrison Access Hacks . | . . . . Unauthorized Hacks 3 | . 3 . . Terminals 1 | . 1 . . Botnet 1 | . 1 . . Fabricators . | . . . . Repair Stations . | . . . . Recycling Units 2 | . 2 . . Tunnel 2 | . 2 . . Scanalyzers . | . . . . Garrison Access . | . . . . Data Cores Recovered 1 | . 1 . . Used 1 | . 1 . . Hacking Detections 9 | . 9 . . Full Trace Events 1 | . 1 . . Feedback Events . | . . . . Feedback Blocked . | . . . . Robot Schematics Acquired . | . . . . Robots Built . | . . . . Authchips . | . . . . Time . | . . . . Total Robot Build Rating . | . . . . Part Schematics Acquired . | . . . . Parts Built . | . . . . Authchips . | . . . . Time . | . . . . Total Part Build Rating . | . . . . Part Studies Acquired . | . . . . Parts Repaired 1 | . 1 . . Time 32 | . 32 . . Parts Recycled . | . . . . Recycled Matter . | . . . . Retrieved Matter . | . . . . Retrieved Components 10 | . 10 . . Parts Scanalyzed . | . . . . Part Schematics Acquired . | . . . . Parts Damaged . | . . . . Bothacking | -11 -10 -10 -8 ------------ Run | Yrd Mat Sub Rec Used RIF Installer . | . . . . Robots Hacked . | . . . . Non-combat . | . . . . Combat . | . . . . Robot Hacks Applied . | . . . . Relay Couplers Released . | . . . . Fabnet Peak Effective % . | . . . . Robots Rewired . | . . . . Allies Hacked . | . . . . Hacks Repelled . | . . . . Allies | -11 -10 -10 -8 -------- Run | Yrd Mat Sub Rec Total Allies . | . . . . Largest Group . | . . . . Highest-Rated Group . | . . . . Highest-Rated Ally . | . . . . Total Orders . | . . . . Ally Attacks . | . . . . Total Damage . | . . . . Kills . | . . . . Allies Corrupted . | . . . . Allies Melted . | . . . . Intel | -11 -10 -10 -8 ------- Run | Yrd Mat Sub Rec Active Infowar (turns) 440 | 50 390 . . Terrain 440 | 50 390 . . Robot Analysis Total 4 | . 4 . . Derelict Logs Recovered 3 | . . 3 . Drone Launches . | . . . . Drone Recoveries . | . . . . Exploration | -11 -10 -10 -8 ------------- Run | Yrd Mat Sub Rec Turns Passed 4372 | 107 1397 2862 6 Spaces Moved 2435 | 46 612 1772 5 Core 11 | . . 11 . Treads 1688 | 8 612 1068 . Legs 38 | 38 . . . Wheels 698 | . . 693 5 Hover . | . . . . Flight . | . . . . Fastest Speed 110 | 120 160 110 120 Average Speed 146 | 126 160 142 120 Slowest Speed 400 | 160 160 400 120 Overloaded Moves . | . . . . Propulsion Burnouts . | . . . . Robots Hopped . | . . . . Potential Cave-ins . | . . . . Cave-ins Triggered . | . . . . Exploration Rate (%) 44 | 3 95 75 3 Regions Visited 3 Branch Regions 2 Pre-discovered Areas 3 | . 2 1 . Known Exits Taken 1 | . . 1 . Unknown Exits Taken 2 | 1 1 . . Scrap Searched 17 | . . 17 . Spaces Dug 6 | . . 6 . Terrain Destroyed 47 | . 38 9 . Melee . | . . . . Projectile 9 | . . 9 . AOE 38 | . 38 . . Terrain Rammed . | . . . . Walls Destroyed . | . . . . Machines Disabled . | . . . . Actions | -11 -10 -10 -8 --------- Run | Yrd Mat Sub Rec Total 3008 | 67 968 1968 5 Wait 324 | 1 266 57 . Move 2433 | 46 611 1771 5 Hop . | . . . . Pick Up 28 | 1 22 5 . Fast Attach 11 | 1 1 9 . Attach 3 | 2 . 1 . Detach . | . . . . Swap 14 | . 8 6 . Drop 29 | 2 14 13 . Fire 164 | 14 45 105 . Melee . | . . . . Ram . | . . . . Kick . | . . . . Crush 1 | . 1 . . Escape Stasis . | . . . . Rewire . | . . . . Trap . | . . . . Miscellaneous 1 | . . 1 . Route ------- -11/Scrapyard -10/Materials (discovered 6 exits: [*Mat x3] / [*Min x2] / *Sub) -10/Subcaves (discovered 3 exits: [*Mat x2] / *Rec) -8/Recycling History --------- Turn | Location | Event 13 | -11/Scrapyard | Discovered new exit (range 3) 108 | -11/Scrapyard | Entered Materials 306 | -10/Materials | Build established: Mutant 440 | -10/Materials | Discovered new exit (range 12) 607 | -10/Materials | Discovered new exit (range 8) 628 | -10/Materials | Discovered new exit (range 9) 1157 | -10/Materials | Discovered new exit (range 16) 1280 | -10/Materials | Discovered new exit (range 3) 1431 | -10/Materials | Repaired Lgt. EM Pulse Cannon 1480 | -10/Materials | Discovered new exit (range 6) 1505 | -10/Materials | Entered Subcaves 1540 | -10/Subcaves | Learned 4 Materials zone layouts 1770 | -10/Subcaves | A swath of the cavern ceiling suddenly collapsed 1893 | -10/Subcaves | Visited Clippyterm 1897 | -10/Subcaves | Learned 40 Factory zone layouts 1897 | -10/Subcaves | Learned Factory emergency access door positions 2022 | -10/Subcaves | Disturbed a concealed Subdweller 2226 | -10/Subcaves | Visited 4L-MR0's lab 2392 | -10/Subcaves | Build established: Subdweller-Mutant 2486 | -10/Subcaves | Discovered new exit (range 8) 2871 | -10/Subcaves | Identified exit to Recycling 2955 | -10/Subcaves | Learned location of Zion (-7) 3265 | -10/Subcaves | Build established: Derelict-Mutant 3430 | -10/Subcaves | Core integrity fell below 50% 3466 | -10/Subcaves | Discovered new exit (range 11) 3629 | -10/Subcaves | Shifting Twisted Machinery released Mak. Power Source 3680 | -10/Subcaves | Core integrity fell below 20% 3695 | -10/Subcaves | Shifting Twisted Machinery released Battle Cannon 3937 | -10/Subcaves | Build established: Mutant 4367 | -10/Subcaves | Entered Recycling 4373 | -8/Recycling | Self-destructed Last Messages --------------- 03684_ Overheating: System interference. 03684_ Sub. Beam Cannon temporarily disabled. Battle Cannon falls loose from the Twisted Machinery. 03971_ 4L-MR0 cries out in pain. 03971_ 4L-MR0 destroyed. 04183_ 8N-FX9(R): "ECOKILL!" 04183_ 8N-FX9(R) destroyed. 04246_ Triggered Piercing Trap. 04246_ Spikes shoot up from the floor. 04246_ Critical hit (Impale). 04246_ Spk. Treads destroyed. 04249_ Triggered Piercing Trap. 04249_ Spikes shoot up from the floor. 04249_ Wheel destroyed. 04249_ Critical hit (Impale). 04296_ Acquired Sub. Monowheel. 04298_ Acquired 10 matter. LOCATION=RECYCLING GOAL=ESCAPE Map ----- +----------------------------------------------------+ | | | ?????????????????????????????????????????????????? | | ?????????????????????????????????????????????????? | | ?????????????????????????????????????????????????? | | ?????????????????????????????????????????????????? | | ?????????????????????????????????????????????????? | | ?????????????????????????????????????????????????? | | ?????????????????????????????????????????????????? | | ?????????????????????????????????????????????????? | | ?????????????????????????????????????????????????? | | ?????????????????????????????????????????????????? | | ?????????????????????????????????????????????????? | | ?????????????????????????????????????????????????? | | ?????????????????????????????????????????????????? | | ?????????????????????????????????????????????????? | | ?????????????????????????????????????????????????? | | ?????????????????????????????????????????????????? | | ?????????????????????????????????????????????????? | | ?????????????????????????????????????????????????? | | ?????????????????????????????????????????????????? | | ?????????????????????????????????????????????????? | | ??????????????????????????#####??????????????????? | | ??????????????????????????#"""#??????????????????? | | ?????????????+##+##########"Y"###????????????????? | | ?????????? #????????????????? | | ?????????? @ #????????????????? | | ?????????? #????????????????? | | ?????????????###+#########+######????????????????? | | ?????????????????????????????????????????????????? | | ?????????????????????????????????????????????????? | | ?????????????????????????????????????????????????? | | ?????????????????????????????????????????????????? | | ?????????????????????????????????????????????????? | | ?????????????????????????????????????????????????? | | ?????????????????????????????????????????????????? | | ?????????????????????????????????????????????????? | | ?????????????????????????????????????????????????? | | ?????????????????????????????????????????????????? | | ?????????????????????????????????????????????????? | | ?????????????????????????????????????????????????? | | ?????????????????????????????????????????????????? | | ?????????????????????????????????????????????????? | | ?????????????????????????????????????????????????? | | ?????????????????????????????????????????????????? | | ?????????????????????????????????????????????????? | | ?????????????????????????????????????????????????? | | ?????????????????????????????????????????????????? | | ?????????????????????????????????????????????????? | | ?????????????????????????????????????????????????? | | ?????????????????????????????????????????????????? | +----------------------------------------------------+ Best States ------------- Heat Dissipation 25 Energy Generation 12 Energy Capacity 265 Matter Stores 300 Matter Capacity 300 Sight Range 16 Terrain Scan Range 16 Terrain Scan Density 10 Armor Coverage 800 Resistance: TH 10 Evasion (%) 55 Recoil Reduction 2 Item Schematics ----------------- None Robot Schematics ------------------ None Fabricated ------------ Nothing Repaired ---------- Lgt. EM Pulse Cannon | 12% | -10/Materials Studied --------- None Alien Tech Used ----------------- None Achievements -------------- None Challenges ------------ None Game ------ Seed BattleIntegrityGriptreads Manual? 0 Play Time 00:18:58 Cumulative 440.5 hours Start 2026.05.03 @ 05:04:28 End 2026.05.03 @ 05:23:36 Sessions 1 Manual Loads 0 Difficulty Rogue Special Mode None Game No. 375 Rogue 339 Adventurer 36 Explorer 0 Win Type - Total 5 Types 2/0/0/1/0/0/0/2/0/0 Lore% 81 Gallery% 69 Achievement% 60 Wizard Run 0 Options --------- Layout 1 ASCII 0 Keyboard 0 Movement Numpad Keybinds 0 Fullscreen 1 Font 48/Smallcaps Map View 50x35 Zoom Use 0% Tactical HUD 1 Map Filters NONE Filters NONE Steam 1 RUN: 980d7522-97c5-40a3-bc38-c095c8222c89